lending/lending_fUSD_20251114
["ID","MTS","AMOUNT","RATE_DAILY","PERIOD"]
[393947172,1763125937582,-151.0,0.00041082,120]
[393947173,1763125937613,-151.0,0.00041082,120]
[393947174,1763125937643,-151.0,0.00041082,120]
[393947175,1763125937671,-245.431407,0.00041082,120]
[393947176,1763125937700,-151.0,0.00041082,120]
[393947177,1763125937727,-151.0,0.00041082,120]
[393947178,1763125937768,-150.0,0.000411,60]
[393947179,1763125937804,-699.57,0.00044481,30]
[393947180,1763125937838,-395.63128409,0.000462,120]
[393947181,1763125937869,-150.0,0.00046825,120]
[393947182,1763125937899,-150.0,0.00046833,120]
[393947183,1763125937932,-188.15,0.000469,60]
[393947184,1763125937968,-395.63128409,0.000476,120]
[393947185,1763125937998,-150.0,0.00048,120]
[393947186,1763125938028,-150.0,0.00048,120]
[393947187,1763125938058,-395.63128409,0.00049,120]
[393947188,1763125938085,-150.0,0.00049475,30]
[393947189,1763125938265,-150.0,0.0004956,30]
[393947190,1763125938295,-150.0,0.00049795,30]
[393947191,1763125938325,-170.0,0.0005,120]
[393947192,1763125938355,-95306.04172683,0.0005,30]
[393947193,1763125938383,-150.0,0.00050104,30]
[393947194,1763125938414,-150.0,0.00050156,30]
[393947195,1763125938445,-150.0,0.00050182,30]
[393947196,1763125938475,-395.63128409,0.000505,120]
[393947197,1763125938504,-150.0,0.00050545,30]
[393947198,1763125938533,-289.42773263,0.00050566,30]
[393947199,1763125938561,-150.0,0.0005061,30]
[393947200,1763125938590,-2145.0,0.0005065,120]
[393947201,1763125938617,-150.0,0.00051348,30]
[393947202,1763125938645,-600.0,0.00051999,120]
[393947203,1763125938671,-600.0,0.00051999,120]
[393947204,1763125938701,-600.0,0.00051999,120]
[393947205,1763125938728,-600.0,0.00051999,120]
[393947206,1763125938757,-600.0,0.00051999,120]
[393947207,1763125938785,-600.0,0.00051999,120]
[393947208,1763125938813,-600.0,0.00051999,120]
[393947209,1763125938842,-600.0,0.00051999,120]
[393947210,1763125938869,-600.0,0.00051999,120]
[393947211,1763125938898,-600.0,0.00051999,120]
[393947212,1763125938928,-600.0,0.00051999,120]
[393947213,1763125938956,-600.0,0.00051999,120]
[393947214,1763125938984,-600.0,0.00051999,120]
[393947215,1763125939016,-600.0,0.00051999,120]
[393947216,1763125939045,-600.0,0.00051999,120]
[393947217,1763125939075,-600.0,0.00051999,120]
[393947218,1763125939103,-600.0,0.00051999,120]
[393947219,1763125939136,-600.0,0.00051999,120]
[393947220,1763125939164,-600.0,0.00051999,120]
[393947221,1763125939192,-600.0,0.00051999,120]
[393947222,1763125939222,-150.0,0.00051999,74]
[393947223,1763125939250,-150.0,0.00051999,74]
[393947224,1763125939279,-157.47055637,0.00051999,74]
[393947225,1763125939307,-500.0,0.00051999,74]
[393947226,1763125939339,-500.0,0.00051999,74]
[393947227,1763125939367,-500.0,0.00051999,74]
[393947228,1763125939395,-500.0,0.00051999,74]
[393947229,1763125939422,-500.0,0.00051999,74]
[393947230,1763125939450,-500.0,0.00051999,74]
[393947231,1763125939479,-500.0,0.00051999,74]
[393947232,1763125939506,-500.0,0.00051999,74]
[393947233,1763125939536,-500.0,0.00051999,74]
[393947234,1763125939569,-500.0,0.00051999,74]
[393947235,1763125939602,-380.19319552,0.00051999,74]
[393947236,1763125939634,-150.0,0.00051999,74]
[393947237,1763125939665,-150.0,0.00051999,74]
[393947238,1763125939697,-200.0,0.00051999,74]
[393947239,1763125939725,-150.0,0.00051999,74]
[393947240,1763125939753,-150.0,0.00051999,74]
[393947241,1763125939781,-150.0,0.00051999,74]
[393947242,1763125939808,-202.91568433,0.00051999,74]
[393947243,1763125939841,-89525.43420807,0.00052,120]
[393947244,1763125939873,-1000000.0,0.00052,120]
[393947245,1763125939902,-186.0,0.00052,60]
[393947246,1763125939932,-800.0,0.00052,120]
[393947247,1763125939961,-1000.0,0.00052,120]
[393947248,1763125939988,-1000.0,0.00052,120]
[393947249,1763125940018,-1000.0,0.00052,120]
[393947250,1763125940051,-1000.0,0.00052,120]
[393947251,1763125940081,-1000.0,0.00052,120]
[393947252,1763125940110,-1000.0,0.00052,120]
[393947253,1763125940143,-1000.0,0.00052,120]
[393947254,1763125940171,-1000.0,0.00052,120]
[393947255,1763125940200,-1000.0,0.00052,120]
[393947256,1763125940229,-200.0,0.00052,120]
[393947257,1763125940257,-380.0,0.00052,120]
[393947258,1763125940286,-395.63128409,0.00052,120]
[393947259,1763125940314,-154.15528276,0.00052,120]
[393947260,1763125940343,-151.0,0.00052,120]
[393947261,1763125940371,-151.0,0.00052,120]
[393947262,1763125940400,-151.0,0.00052,120]
[393947263,1763125940427,-151.0,0.00052,120]
[393947264,1763125940455,-151.0,0.00052,120]
[393947265,1763125940483,-151.0,0.00052,120]
[393947266,1763125940511,-614.6,0.00052,30]
[393947267,1763125940539,-1167.56,0.00052055,120]
[393947268,1763125940975,151.0,0.00041082,120]
[393947269,1763125941024,151.0,0.00041082,120]
[393947270,1763125941344,151.0,0.00041082,120]
[393947271,1763125941384,151.0,0.00041082,120]
[393947272,1763125941511,247.564539,0.00041082,120]
[393947273,1763125941564,151.0,0.00041082,120]
[393947274,1763125941602,151.0,0.00041082,120]
[393947275,1763125941657,167.30396,0.00041082,120]
[393947276,1763125942686,373.32399279,0.00051977,30]
[393947277,1763125943979,151.0,0.00041082,120]
[393947278,1763125944465,151.0,0.00041082,120]
[393947279,1763125944981,151.0,0.00041082,120]
[393947280,1763125945497,151.0,0.00041082,120]
[393947281,1763126037588,-461.287354,0.00016402,2]
[393947282,1763126046421,-199.11307754,0.00016484,2]
[393947283,1763126048172,-168.63131763,0.00016484,2]
[393947284,1763126055690,269.65091827,0.000164,2]
[393947285,1763126069913,785.0874901,0.00016484,2]
[393947286,1763126153849,50000.0,0.00041152,43]
[393947287,1763126162518,200.0,0.00041152,30]
[393947288,1763126192846,2971.733998,0.00016484,2]
[393947289,1763126224758,242.85204517,0.00016484,2]
[393947290,1763126243046,-168.58,0.000379,30]
[393947291,1763126243082,-182.165,0.00038888,30]
[393947292,1763126243115,-338.0,0.00039,90]
[393947293,1763126243148,-491.68,0.00039,30]
[393947294,1763126243183,-338.0,0.00039557,90]
[393947295,1763126243221,-338.0,0.00039831,90]
[393947296,1763126243257,-338.0,0.00040105,90]
[393947297,1763126243296,-338.0,0.00040379,90]
[393947298,1763126243337,-151.0,0.00041082,120]
[393947299,1763126243373,-151.0,0.00041082,120]
[393947300,1763126243410,-151.0,0.00041082,120]
[393947301,1763126243448,-151.0,0.00041082,120]
[393947302,1763126243483,-185.77243,0.00041082,120]
[393947303,1763126243520,-151.0,0.00041082,120]
[393947304,1763126243556,-151.0,0.00041082,120]
[393947305,1763126243592,-151.0,0.00041082,120]
[393947306,1763126243630,-151.000004,0.00041082,120]
[393947307,1763126243666,-252.456067,0.00041082,120]
[393947308,1763126243701,-252.456067,0.00041082,120]
[393947309,1763126243738,-252.456067,0.00041082,120]
[393947310,1763126243775,-252.456067,0.00041082,120]
[393947311,1763126243813,-252.456067,0.00041082,120]
[393947312,1763126243849,-252.456067,0.00041082,120]
[393947313,1763126243883,-151.0,0.00041082,60]
[393947314,1763126243919,-252.456067,0.00041082,120]
[393947315,1763126243956,-252.456067,0.00041082,120]
[393947316,1763126243992,-252.456067,0.00041082,120]
[393947317,1763126244029,-252.456067,0.00041082,120]
[393947318,1763126244067,-252.456067,0.00041082,120]
[393947319,1763126244103,-252.456067,0.00041082,120]
[393947320,1763126244140,-252.456067,0.00041082,120]
[393947321,1763126244175,-252.456067,0.00041082,120]
[393947322,1763126244214,-252.456067,0.00041082,120]
[393947323,1763126244251,-252.456067,0.00041082,120]
[393947324,1763126244290,-252.456067,0.00041082,120]
[393947325,1763126244327,-252.456067,0.00041082,120]
[393947326,1763126244366,-252.456067,0.00041082,120]
[393947327,1763126244405,-252.456066,0.00041082,120]
[393947328,1763126244440,-151.0,0.00041082,120]
[393947329,1763126244482,-151.0,0.00041082,120]
[393947330,1763126244521,-151.0,0.00041082,120]
[393947331,1763126244562,-196.222596,0.00041082,120]
[393947332,1763126244600,-151.0,0.00041082,120]
[393947333,1763126244636,-151.0,0.00041082,120]
[393947334,1763126244672,-151.0,0.00041082,120]
[393947335,1763126244708,-151.0,0.00041082,120]
[393947336,1763126244744,-151.0,0.00041082,120]
[393947337,1763126244785,-151.0,0.00041082,120]
[393947338,1763126244822,-151.0,0.00041082,120]
[393947339,1763126244860,-151.0,0.00041082,120]
[393947340,1763126244896,-151.0,0.00041082,120]
[393947341,1763126244934,-151.0,0.00041082,120]
[393947342,1763126244976,-151.0,0.00041082,120]
[393947343,1763126245014,-158.578338,0.00041082,120]
[393947344,1763126245053,-289.01,0.000411,60]
[393947345,1763126245104,-164.65,0.00041152,30]
[393947346,1763126245317,-151.0,0.00041152,120]
[393947347,1763126245353,-151.0,0.00041152,120]
[393947348,1763126245389,-151.0,0.00041152,60]
[393947349,1763126245427,-151.0,0.00041152,60]
[393947350,1763126245469,-226.957097,0.00041152,60]
[393947351,1763126245506,-154.155854,0.00041152,120]
[393947352,1763126245544,-151.0,0.00041152,120]
[393947353,1763126245584,-151.0,0.00041152,120]
[393947354,1763126245622,-155.981819,0.00041152,120]
[393947355,1763126245661,-151.0,0.00041152,120]
[393947356,1763126245701,-151.0,0.00041152,120]
[393947357,1763126245740,-156.048806,0.00041152,120]
[393947358,1763126245785,-151.0,0.00041152,120]
[393947359,1763126245829,-151.0,0.00041152,120]
[393947360,1763126245872,-151.0,0.00041152,120]
[393947361,1763126245915,-151.0,0.00041152,120]
[393947362,1763126245963,-151.0,0.00041152,120]
[393947363,1763126246010,-188.186447,0.00041152,120]
[393947364,1763126246053,-151.0,0.00041152,120]
[393947365,1763126246095,-154.765947,0.00041152,120]
[393947366,1763126246139,-151.0,0.00041152,95]
[393947367,1763126246182,-151.0,0.00041152,95]
[393947368,1763126246227,-298.76383,0.00041152,95]
[393947369,1763126246270,-151.0,0.00041152,120]
[393947370,1763126246308,-151.0,0.00041152,120]
[393947371,1763126246344,-154.077154,0.00041152,120]
[393947372,1763126246381,-151.0,0.00041152,120]
[393947373,1763126246418,-151.0,0.00041152,120]
[393947374,1763126246455,-219.0,0.00041152,120]
[393947375,1763126246494,-151.0,0.00041152,120]
[393947376,1763126246532,-151.0,0.00041152,120]
[393947377,1763126246571,-151.0,0.00041152,120]
[393947378,1763126246610,-151.0,0.00041152,120]
[393947379,1763126246652,-155.805367,0.00041152,120]
[393947380,1763126246698,-151.0,0.00041152,120]
[393947381,1763126246738,-151.0,0.00041152,120]
[393947382,1763126246777,-151.0,0.00041152,120]
[393947383,1763126246814,-151.0,0.00041152,120]
[393947384,1763126246852,-151.0,0.00041152,120]
[393947385,1763126246890,-270.278315,0.00041152,120]
[393947386,1763126246926,-213.106303,0.00041152,120]
[393947387,1763126246963,-179.651276,0.00041152,120]
[393947388,1763126247001,-151.905302,0.00041152,120]
[393947389,1763126247040,-151.0,0.00041152,120]
[393947390,1763126247078,-151.0,0.00041152,120]
[393947391,1763126247119,-151.0,0.00041152,120]
[393947392,1763126247161,-156.476925,0.00041152,120]
[393947393,1763126247205,-151.0,0.00041152,120]
[393947394,1763126247248,-151.0,0.00041152,120]
[393947395,1763126247290,-151.0,0.00041152,120]
[393947396,1763126247332,-151.0,0.00041152,120]
[393947397,1763126247374,-151.0,0.00041152,120]
[393947398,1763126247417,-151.0,0.00041152,120]
[393947399,1763126247457,-151.0,0.00041152,120]
[393947400,1763126247502,-282.527133,0.00041152,120]
[393947401,1763126247546,-151.0,0.00041152,120]
[393947402,1763126247589,-151.0,0.00041152,120]
[393947403,1763126247632,-151.0,0.00041152,120]
[393947404,1763126247672,-156.607416,0.00041152,120]
[393947405,1763126247712,-152.888965,0.00041152,120]
[393947406,1763126247750,-151.0,0.00041152,120]
[393947407,1763126247789,-244.10011,0.00041152,120]
[393947408,1763126247828,-151.0,0.00041152,120]
[393947409,1763126247872,-151.0,0.00041152,120]
[393947410,1763126247916,-151.0,0.00041152,120]
[393947411,1763126247960,-151.0,0.00041152,120]
[393947412,1763126248004,-151.0,0.00041152,120]
[393947413,1763126248048,-151.0,0.00041152,120]
[393947414,1763126248092,-151.0,0.00041152,120]
[393947415,1763126248137,-151.0,0.00041152,120]
[393947416,1763126248178,-151.0,0.00041152,120]
[393947417,1763126248224,-151.0,0.00041152,120]
[393947418,1763126248267,-151.0,0.00041152,120]
[393947419,1763126248312,-151.0,0.00041152,120]
[393947420,1763126248356,-151.0,0.00041152,120]
[393947421,1763126248402,-151.0,0.00041152,120]
[393947422,1763126248445,-151.0,0.00041152,120]
[393947423,1763126248489,-151.0,0.00041152,120]
[393947424,1763126248534,-204.397072,0.00041152,120]
[393947425,1763126248577,-151.0,0.00041152,120]
[393947426,1763126248621,-151.0,0.00041152,120]
[393947427,1763126248666,-223.721712,0.00041152,120]
[393947428,1763126248710,-157.70204,0.00041152,120]
[393947429,1763126248756,-151.0,0.00041152,120]
[393947430,1763126248801,-151.0,0.00041152,120]
[393947431,1763126248845,-157.613429,0.00041152,120]
[393947432,1763126248891,-151.0,0.00041152,120]
[393947433,1763126248936,-151.0,0.00041152,120]
[393947434,1763126248981,-151.0,0.00041152,120]
[393947435,1763126249026,-151.0,0.00041152,120]
[393947436,1763126249069,-151.0,0.00041152,120]
[393947437,1763126249110,-178.279413,0.00041152,120]
[393947438,1763126249153,-151.0,0.00041152,120]
[393947439,1763126249194,-151.0,0.00041152,120]
[393947440,1763126249237,-151.0,0.00041152,120]
[393947441,1763126249276,-151.0,0.00041152,120]
[393947442,1763126249317,-205.407174,0.00041152,120]
[393947443,1763126249354,-153.681769,0.00041152,120]
[393947444,1763126249391,-151.0,0.00041152,120]
[393947445,1763126249428,-153.890283,0.00041152,120]
[393947446,1763126249463,-159.11063,0.00041152,120]
[393947447,1763126249501,-151.0,0.00041152,120]
[393947448,1763126249538,-151.0,0.00041152,120]
[393947449,1763126249576,-278.070574,0.00041152,120]
[393947450,1763126249760,-151.0,0.00041152,120]
[393947451,1763126249799,-151.0,0.00041152,120]
[393947452,1763126249839,-151.0,0.00041152,120]
[393947453,1763126249876,-219.005265,0.00041152,120]
[393947454,1763126249911,-151.0,0.00041152,120]
[393947455,1763126249946,-151.0,0.00041152,120]
[393947456,1763126249980,-151.0,0.00041152,120]
[393947457,1763126250013,-151.0,0.00041152,120]
[393947458,1763126250046,-152.88316,0.00041152,120]
[393947459,1763126250079,-151.0,0.00041152,120]
[393947460,1763126250111,-151.0,0.00041152,120]
[393947461,1763126250144,-151.0,0.00041152,120]
[393947462,1763126250176,-151.0,0.00041152,120]
[393947463,1763126250208,-151.0,0.00041152,120]
[393947464,1763126250245,-151.0,0.00041152,120]
[393947465,1763126250278,-152.523775,0.00041152,120]
[393947466,1763126250310,-151.932847,0.00041152,120]
[393947467,1763126250344,-338.0,0.00041248,90]
[393947468,1763126250378,-491.68,0.00042,30]
[393947469,1763126250410,-338.0,0.0004331,90]
[393947470,1763126250442,-340.0,0.0004331,90]
[393947471,1763126250476,-338.0,0.00045042,90]
[393947472,1763126250510,-338.0,0.00045372,90]
[393947473,1763126250544,-701.16,0.00046082,30]
[393947474,1763126250575,-338.0,0.00046775,90]
[393947475,1763126250609,-1000000.0,0.00047,120]
[393947476,1763126250640,-338.0,0.00047435,90]
[393947477,1763126250672,-1000000.0,0.00048,120]
[393947478,1763126250704,-1000000.0,0.000485,120]
[393947479,1763126250732,-338.0,0.00048507,90]
[393947480,1763126250762,-1000000.0,0.00049,120]
[393947481,1763126250790,-150.0,0.00049356,30]
[393947482,1763126250819,-150.0,0.00049449,30]
[393947483,1763126250847,-338.0,0.00049497,120]
[393947484,1763126250879,-963906.877084,0.000495,120]
[393947485,1763126254761,178.35,0.00013178,2]
[393947486,1763126279369,-393.1816495,0.00038783,30]
[393947487,1763126279429,-151.0,0.00041152,120]
[393947488,1763126279458,-151.0,0.00041152,120]
[393947489,1763126279488,-151.0,0.00041152,120]
[393947490,1763126279516,-155.579252,0.00041152,120]
[393947491,1763126279546,-169.956839,0.00041152,120]
[393947492,1763126279574,-155.451642,0.00041152,120]
[393947493,1763126279605,-154.951755,0.00041152,120]
[393947494,1763126279631,-151.0,0.00041152,120]
[393947495,1763126279658,-151.0,0.00041152,120]
[393947496,1763126279684,-151.0,0.00041152,120]
[393947497,1763126279711,-151.0,0.00041152,120]
[393947498,1763126279738,-151.0,0.00041152,120]
[393947499,1763126279765,-151.0,0.00041152,120]
[393947500,1763126279792,-155.108164,0.00041152,120]
[393947501,1763126279820,-151.0,0.00041152,120]
[393947502,1763126279859,-1000000.0,0.000475,120]
[393947503,1763126279889,-36093.122916,0.000495,120]
[393947504,1763126279918,-150.0,0.00049529,30]
[393947505,1763126279947,-150.0,0.00049644,30]
[393947506,1763126279978,-150.0,0.00049661,30]
[393947507,1763126280006,-150.0,0.00049901,30]
[393947508,1763126280036,-1000.0,0.0004998,30]
[393947509,1763126280067,-150.0,0.00049986,30]
[393947510,1763126280335,-150.0,0.00049999,30]
[393947511,1763126280369,-1000000.0,0.0005,120]
[393947512,1763126280400,-2635.0,0.0005,120]
[393947513,1763126280429,-150.0,0.00050028,30]
[393947514,1763126280460,-248.96014157,0.00050044,30]
[393947515,1763126280494,-150.0,0.00050093,30]
[393947516,1763126280524,-150.0,0.00050096,30]
[393947517,1763126280553,-150.0,0.00050177,30]
[393947518,1763126280582,-338.0,0.00050239,120]
[393947519,1763126280612,-150.0,0.00050277,30]
[393947520,1763126280643,-150.0,0.00050283,30]
[393947521,1763126280671,-150.0,0.00050339,30]
[393947522,1763126280703,-150.0,0.00050405,30]
[393947523,1763126280732,-150.0,0.00050437,30]
[393947524,1763126280762,-1000000.0,0.000505,120]
[393947525,1763126280790,-150.0,0.00050669,30]
[393947526,1763126280819,-1000.0,0.00050684,30]
[393947527,1763126280846,-150.0,0.00050686,30]
[393947528,1763126280874,-150.0,0.00050712,30]
[393947529,1763126280902,-150.0,0.00050713,30]
[393947530,1763126280931,-1000.0,0.00050714,30]
[393947531,1763126280964,-1000.0,0.00050734,30]
[393947532,1763126281000,-1000.0,0.00050742,30]
[393947533,1763126281029,-150.0,0.00050762,30]
[393947534,1763126281058,-1000.0,0.00050787,30]
[393947535,1763126281087,-1000.0,0.0005079,30]
[393947536,1763126281116,-1000.0,0.0005079,30]
[393947537,1763126281145,-1000.0,0.00050811,30]
[393947538,1763126281177,-1000.0,0.00050844,30]
[393947539,1763126281209,-1000.0,0.00050848,30]
[393947540,1763126281250,-1000.0,0.00050866,30]
[393947541,1763126281282,-150.0,0.00050873,30]
[393947542,1763126281314,-1000.0,0.00050908,30]
[393947543,1763126281344,-1000.0,0.00050925,30]
[393947544,1763126281373,-1000.0,0.00050926,30]
[393947545,1763126281404,-1000.0,0.00050958,30]
[393947546,1763126281434,-150.0,0.0005099,30]
[393947547,1763126281467,-1000000.0,0.00051,120]
[393947548,1763126281503,-500.0,0.00051,120]
[393947549,1763126281538,-500.0,0.00051,120]
[393947550,1763126281571,-500.0,0.00051,120]
[393947551,1763126281602,-500.0,0.00051,120]
[393947552,1763126281632,-500.0,0.00051,120]
[393947553,1763126281662,-500.0,0.00051,120]
[393947554,1763126281692,-500.0,0.00051,120]
[393947555,1763126281721,-500.0,0.00051,120]
[393947556,1763126281749,-500.0,0.00051,120]
[393947557,1763126281782,-500.0,0.00051,120]
[393947558,1763126281810,-500.0,0.00051,120]
[393947559,1763126281839,-500.0,0.00051,120]
[393947560,1763126281869,-500.0,0.00051,120]
[393947561,1763126281897,-500.0,0.00051,120]
[393947562,1763126281931,-500.0,0.00051,120]
[393947563,1763126281976,-500.0,0.00051,120]
[393947564,1763126282005,-500.0,0.00051,120]
[393947565,1763126282035,-500.0,0.00051,120]
[393947566,1763126282068,-500.0,0.00051,120]
[393947567,1763126282096,-500.0,0.00051,120]
[393947568,1763126282124,-500.0,0.00051,120]
[393947569,1763126282155,-500.0,0.00051,120]
[393947570,1763126282186,-500.0,0.00051,120]
[393947571,1763126282216,-500.0,0.00051,120]
[393947572,1763126282251,-500.0,0.00051,120]
[393947573,1763126282280,-500.0,0.00051,120]
[393947574,1763126282310,-500.0,0.00051,120]
[393947575,1763126282342,-500.0,0.00051,120]
[393947576,1763126282375,-500.0,0.00051,120]
[393947577,1763126282423,-500.0,0.00051,120]
[393947578,1763126282458,-500.0,0.00051,120]
[393947579,1763126282496,-500.0,0.00051,120]
[393947580,1763126282529,-500.0,0.00051,120]
[393947581,1763126282560,-500.0,0.00051,120]
[393947582,1763126282593,-500.0,0.00051,120]
[393947583,1763126282622,-500.0,0.00051,120]
[393947584,1763126282651,-500.0,0.00051,120]
[393947585,1763126282680,-500.0,0.00051,120]
[393947586,1763126282710,-500.0,0.00051,120]
[393947587,1763126282740,-500.0,0.00051,120]
[393947588,1763126282770,-1000.0,0.00051007,30]
[393947589,1763126282800,-1000.0,0.00051027,30]
[393947590,1763126282829,-1000.0,0.00051056,30]
[393947591,1763126282859,-1000.0,0.00051064,30]
[393947592,1763126282888,-1000.0,0.00051083,30]
[393947593,1763126282924,-1000.0,0.00051153,30]
[393947594,1763126282952,-1000.0,0.00051174,30]
[393947595,1763126282981,-1000.0,0.00051177,30]
[393947596,1763126283011,-150.0,0.00051219,30]
[393947597,1763126283041,-1000.0,0.00051243,30]
[393947598,1763126283070,-150.0,0.00051256,30]
[393947599,1763126283100,-150.0,0.00051261,30]
[393947600,1763126283132,-1000.0,0.00051284,30]
[393947601,1763126283164,-150.0,0.00051313,30]
[393947602,1763126283196,-1000.0,0.00051358,30]
[393947603,1763126283230,-993.0,0.00051368,30]
[393947604,1763126283262,-1000.0,0.00051396,30]
[393947605,1763126283293,-1000.0,0.00051403,30]
[393947606,1763126283326,-1000.0,0.00051425,30]
[393947607,1763126283357,-150.0,0.00051428,30]
[393947608,1763126283389,-1000.0,0.00051441,30]
[393947609,1763126283601,-1000.0,0.00051472,30]
[393947610,1763126283632,-1000.0,0.00051482,30]
[393947611,1763126283662,-1000.0,0.00051482,30]
[393947612,1763126283691,-1000.0,0.00051488,30]
[393947613,1763126283719,-1000.0,0.000515,30]
[393947614,1763126283751,-896947.68764093,0.000515,120]
[393947615,1763126286260,-1055.14,0.00041096,120]
[393947616,1763126286312,-151.0,0.00041152,120]
[393947617,1763126286343,-151.0,0.00041152,120]
[393947618,1763126286375,-228.365456,0.00041152,120]
[393947619,1763126286416,-103052.31235907,0.000515,120]
[393947620,1763126286446,-1000.0,0.00051507,30]
[393947621,1763126286478,-1000.0,0.00051507,30]
[393947622,1763126286508,-1000.0,0.00051531,30]
[393947623,1763126286537,-1000.0,0.00051556,30]
[393947624,1763126286571,-1000.0,0.00051591,30]
[393947625,1763126286605,-1000.0,0.00051597,30]
[393947626,1763126286638,-1000.0,0.0005161,30]
[393947627,1763126286670,-1000.0,0.00051616,30]
[393947628,1763126286701,-1000.0,0.00051634,30]
[393947629,1763126286735,-150.0,0.0005164,30]
[393947630,1763126286763,-1000.0,0.00051666,30]
[393947631,1763126286795,-1000.0,0.0005167,30]
[393947632,1763126286824,-1000.0,0.00051706,30]
[393947633,1763126286858,-150.0,0.00051733,30]
[393947634,1763126286888,-1000.0,0.00051738,30]
[393947635,1763126286917,-1000.0,0.00051753,30]
[393947636,1763126286947,-1000.0,0.00051763,30]
[393947637,1763126286979,-1000.0,0.00051819,30]
[393947638,1763126287008,-150.0,0.00051828,30]
[393947639,1763126287037,-1000.0,0.00051833,30]
[393947640,1763126287066,-1000.0,0.00051834,30]
[393947641,1763126287094,-1000.0,0.0005184,30]
[393947642,1763126287126,-246.3701587,0.00051899,30]
[393947643,1763126287155,-150.0,0.00051913,30]
[393947644,1763126287182,-150.0,0.00051914,30]
[393947645,1763126287210,-1000.0,0.00051927,30]
[393947646,1763126287246,-1000.0,0.00051967,30]
[393947647,1763126287276,-338.0,0.00051972,120]
[393947648,1763126287305,-1000.0,0.00051973,30]
[393947649,1763126287333,-150.0,0.00051983,30]
[393947650,1763126287363,-1000.0,0.00051989,30]
[393947651,1763126287580,-1405410.0,0.00052,120]
[393947652,1763126287609,-3883.58530503,0.00052,120]
[393947653,1763126287639,-203.36825831,0.00052,120]
[393947654,1763126287668,-1000.0,0.00052007,30]
[393947655,1763126287696,-1000.0,0.0005204,30]
[393947656,1763126287726,-600.0,0.00052054,120]
[393947657,1763126287759,-600.0,0.00052054,120]
[393947658,1763126287812,-600.0,0.00052054,120]
[393947659,1763126287853,-618.99748471,0.00052054,120]
[393947660,1763126287889,-151.0,0.00052055,120]
[393947661,1763126287923,-151.0,0.00052055,120]
[393947662,1763126287954,-151.0,0.00052055,120]
[393947663,1763126287987,-151.0,0.00052055,120]
[393947664,1763126288018,-151.0,0.00052055,120]
[393947665,1763126288049,-385.0,0.000522,120]
[393947666,1763126288081,-866.37020519,0.00052254,30]
[393947667,1763126288118,-1617.16289947,0.0005233,120]
[393947668,1763126288166,-2000.0,0.0005244,63]
[393947669,1763126288201,-152.0,0.000526,120]
[393947670,1763126288238,-1857.12544217,0.000527,120]
[393947671,1763126288270,-154.0,0.000527,120]